fUSD/lending_fUSD_20241225
["ID","MTS","AMOUNT","RATE_DAILY","PERIOD"]
[346671603,1735164350507,-150.0,0.00012773,2]
[346671604,1735164350545,-150.0,0.00012773,2]
[346671605,1735164350581,-150.0,0.00012773,2]
[346671606,1735164350618,-150.0,0.00012773,2]
[346671607,1735164350653,-150.0,0.00012773,2]
[346671608,1735164350700,-150.0,0.00012773,2]
[346671609,1735164350760,-150.0,0.00012773,2]
[346671610,1735164350821,-150.0,0.00012773,2]
[346671611,1735164350882,-150.0,0.00012773,2]
[346671612,1735164350943,-150.0,0.00012773,2]
[346671613,1735164351002,-500.0,0.00012798,2]
[346671614,1735164351058,-11614.45282141,0.00012813,2]
[346671615,1735164351111,-5000.0,0.00012874,3]
[346671616,1735164351165,-512.14557557,0.000129,2]
[346671617,1735164351217,-165.19057036,0.000129,2]
[346671618,1735164351267,-1854.74565728,0.000129,2]
[346671619,1735164351321,-409.43,0.00012901,2]
[346671620,1735164351374,-1448.11442211,0.00012926,2]
[346671621,1735164351427,-1448.11442211,0.00012933,2]
[346671622,1735164351481,-578.56,0.00012933,2]
[346671623,1735164351532,-500.0,0.00012933,2]
[346671624,1735164351584,-500.0,0.00012933,2]
[346671625,1735164351636,-500.0,0.00012933,2]
[346671626,1735164351688,-500.0,0.00012933,2]
[346671627,1735164351740,-500.0,0.00012933,2]
[346671628,1735164351793,-500.0,0.00012933,2]
[346671629,1735164351847,-500.0,0.00012933,2]
[346671630,1735164351902,-500.0,0.00012933,2]
[346671631,1735164351953,-500.0,0.00012933,2]
[346671632,1735164352007,-500.0,0.00012933,2]
[346671633,1735164352059,-500.0,0.00012933,2]
[346671634,1735164352110,-500.0,0.00012933,2]
[346671635,1735164352162,-500.0,0.00012933,2]
[346671636,1735164352216,-598.79,0.00012933,2]
[346671637,1735164352274,-500.0,0.00012933,2]
[346671638,1735164352329,-500.0,0.00012933,2]
[346671639,1735164352381,-439.44094621,0.00012933,2]
[346671640,1735164352432,-500.0,0.00012933,2]
[346671641,1735164352485,-500.0,0.00012933,2]
[346671642,1735164352537,-268.86,0.00012933,2]
[346671643,1735164352589,-500.0,0.00012933,2]
[346671644,1735164352641,-500.0,0.00012933,2]
[346671645,1735164352693,-500.0,0.00012933,2]
[346671646,1735164352746,-500.0,0.00012933,2]
[346671647,1735164352798,-500.0,0.00012933,2]
[346671648,1735164352853,-500.0,0.00012933,2]
[346671649,1735164352907,-500.0,0.00012933,2]
[346671650,1735164353163,-500.0,0.00012933,2]
[346671651,1735164353200,-500.0,0.00012933,2]
[346671652,1735164353236,-500.0,0.00012933,2]
[346671653,1735164353273,-500.0,0.00012933,2]
[346671654,1735164353310,-500.0,0.00012933,2]
[346671655,1735164353346,-500.0,0.00012933,2]
[346671656,1735164353382,-500.0,0.00012933,2]
[346671657,1735164353417,-500.0,0.00012933,2]
[346671658,1735164353454,-500.0,0.00012933,2]
[346671659,1735164353490,-500.0,0.00012933,2]
[346671660,1735164353525,-500.0,0.00012933,2]
[346671661,1735164353561,-500.0,0.00012933,2]
[346671662,1735164353598,-500.0,0.00012933,2]
[346671663,1735164353636,-500.0,0.00012933,2]
[346671664,1735164353672,-500.0,0.00012933,2]
[346671665,1735164353710,-500.0,0.00012933,2]
[346671666,1735164353746,-500.0,0.00012933,2]
[346671667,1735164353783,-500.0,0.00012933,2]
[346671668,1735164353820,-500.0,0.00012933,2]
[346671669,1735164353862,-500.0,0.00012933,2]
[346671670,1735164353899,-500.0,0.00012933,2]
[346671671,1735164353935,-500.0,0.00012933,2]
[346671672,1735164353972,-176.36,0.00012933,2]
[346671673,1735164354008,-500.0,0.00012933,2]
[346671674,1735164354047,-536.2,0.00012933,2]
[346671675,1735164354085,-500.0,0.00012933,2]
[346671676,1735164354123,-500.0,0.00012933,2]
[346671677,1735164354160,-500.0,0.00012933,2]
[346671678,1735164354198,-500.0,0.00012933,2]
[346671679,1735164354236,-500.0,0.00012933,2]
[346671680,1735164354276,-500.0,0.00012933,2]
[346671681,1735164354316,-500.0,0.00012933,2]
[346671682,1735164354359,-500.0,0.00012933,2]
[346671683,1735164354399,-500.0,0.00012933,2]
[346671684,1735164354441,-500.0,0.00012933,2]
[346671685,1735164354480,-935.74,0.00012933,2]
[346671686,1735164354519,-500.0,0.00012933,2]
[346671687,1735164354557,-500.0,0.00012933,2]
[346671688,1735164354596,-500.0,0.00012933,2]
[346671689,1735164354634,-1066.39,0.00012933,2]
[346671690,1735164354673,-500.0,0.00012933,2]
[346671691,1735164354712,-500.0,0.00012933,2]
[346671692,1735164354751,-647.95895484,0.00012933,2]
[346671693,1735164354790,-500.0,0.00012933,2]
[346671694,1735164354830,-500.0,0.00012933,2]
[346671695,1735164354869,-636.34,0.00012933,2]
[346671696,1735164354909,-500.0,0.00012933,2]
[346671697,1735164354950,-509.21,0.00012933,2]
[346671698,1735164354988,-500.0,0.00012933,2]
[346671699,1735164355028,-500.0,0.00012933,2]
[346671700,1735164355067,-500.0,0.00012933,2]
[346671701,1735164355107,-500.0,0.00012933,2]
[346671702,1735164355147,-500.0,0.00012933,2]
[346671703,1735164355186,-500.0,0.00012933,2]
[346671704,1735164355228,-159.78,0.00012933,2]
[346671705,1735164355268,-1080.81,0.00012933,2]
[346671706,1735164355307,-500.0,0.00012933,2]
[346671707,1735164355347,-500.0,0.00012933,2]
[346671708,1735164355387,-500.0,0.00012933,2]
[346671709,1735164355430,-500.0,0.00012933,2]
[346671710,1735164355470,-500.0,0.00012933,2]
[346671711,1735164355511,-500.0,0.00012933,2]
[346671712,1735164355552,-500.0,0.00012933,2]
[346671713,1735164355594,-500.0,0.00012933,2]
[346671714,1735164355636,-500.0,0.00012933,2]
[346671715,1735164355677,-500.0,0.00012933,2]
[346671716,1735164355718,-500.0,0.00012933,2]
[346671717,1735164355758,-1275.074193,0.00012933,2]
[346671718,1735164355798,-500.0,0.00012933,2]
[346671719,1735164355838,-1036.97,0.00012933,2]
[346671720,1735164355877,-1588.927792,0.00012933,2]
[346671721,1735164355916,-718.73,0.00012933,2]
[346671722,1735164355957,-500.0,0.00012933,2]
[346671723,1735164355999,-500.0,0.00012933,2]
[346671724,1735164356040,-500.0,0.00012933,2]
[346671725,1735164356081,-500.0,0.00012933,2]
[346671726,1735164356121,-500.0,0.00012933,2]
[346671727,1735164356164,-610.62,0.00012933,2]
[346671728,1735164356205,-999.65,0.00012933,2]
[346671729,1735164356247,-925.0,0.00012933,2]
[346671730,1735164356294,-500.0,0.00012933,2]
[346671731,1735164356335,-504.79,0.00012933,2]
[346671732,1735164356378,-709.37,0.00012933,2]
[346671733,1735164356421,-500.0,0.00012933,2]
[346671734,1735164356467,-500.0,0.00012933,2]
[346671735,1735164356510,-771.1,0.00012933,2]
[346671736,1735164356555,-500.0,0.00012933,2]
[346671737,1735164356600,-702.5,0.00012933,2]
[346671738,1735164356641,-500.0,0.00012933,2]
[346671739,1735164356682,-500.0,0.00012933,2]
[346671740,1735164356721,-500.0,0.00012933,2]
[346671741,1735164356762,-536.16,0.00012933,2]
[346671742,1735164356808,-865.77,0.00012933,2]
[346671743,1735164356851,-500.0,0.00012933,2]
[346671744,1735164356891,-500.0,0.00012933,2]
[346671745,1735164356934,-500.0,0.00012933,2]
[346671746,1735164356978,-975.13,0.00012933,2]
[346671747,1735164357019,-500.0,0.00012933,2]
[346671748,1735164357063,-914.84,0.00012933,2]
[346671749,1735164357107,-500.0,0.00012933,2]
[346671750,1735164357147,-500.0,0.00012933,2]
[346671751,1735164357188,-249.18,0.00012933,2]
[346671752,1735164357228,-1047.86,0.00012933,2]
[346671753,1735164357269,-412.85183739,0.00012933,2]
[346671754,1735164357308,-840.33,0.00012933,2]
[346671755,1735164357348,-500.0,0.00012933,2]
[346671756,1735164357389,-500.0,0.00012933,2]
[346671757,1735164357430,-500.0,0.00012933,2]
[346671758,1735164357469,-509.2,0.00012933,2]
[346671759,1735164357508,-500.0,0.00012933,2]
[346671760,1735164357700,-1028.5,0.00012933,2]
[346671761,1735164357741,-292.44,0.00012933,2]
[346671762,1735164357782,-500.0,0.00012933,2]
[346671763,1735164357820,-657.78,0.00012933,2]
[346671764,1735164357859,-500.0,0.00012933,2]
[346671765,1735164357897,-500.0,0.00012933,2]
[346671766,1735164357935,-506.07,0.00012933,2]
[346671767,1735164357973,-500.0,0.00012933,2]
[346671768,1735164358013,-500.0,0.00012933,2]
[346671769,1735164358051,-440.82,0.00012933,2]
[346671770,1735164358089,-801.09,0.00012933,2]
[346671771,1735164358127,-1095.9,0.00012933,2]
[346671772,1735164358165,-703.76,0.00012933,2]
[346671773,1735164358204,-500.0,0.00012933,2]
[346671774,1735164358242,-281.94548252,0.00012933,2]
[346671775,1735164358279,-1493.24,0.00012933,2]
[346671776,1735164358316,-1622.13,0.00012933,2]
[346671777,1735164358353,-500.0,0.00012933,2]
[346671778,1735164358391,-552.06,0.00012933,2]
[346671779,1735164358430,-412.86,0.00012933,2]
[346671780,1735164358469,-500.0,0.00012933,2]
[346671781,1735164358509,-500.0,0.00012933,2]
[346671782,1735164358550,-500.0,0.00012933,2]
[346671783,1735164358592,-500.0,0.00012933,2]
[346671784,1735164358632,-691.59,0.00012933,2]
[346671785,1735164358673,-500.0,0.00012933,2]
[346671786,1735164358715,-1373.84,0.00012933,2]
[346671787,1735164358754,-500.0,0.00012933,2]
[346671788,1735164358794,-2141.5,0.00012933,2]
[346671789,1735164358833,-1878.43,0.00012933,2]
[346671790,1735164358874,-500.0,0.00012933,2]
[346671791,1735164358913,-1078.32,0.00012933,2]
[346671792,1735164358951,-2761.63,0.00012933,2]
[346671793,1735164358987,-500.0,0.00012933,2]
[346671794,1735164359026,-500.0,0.00012933,2]
[346671795,1735164359064,-2746.02,0.00012933,2]
[346671796,1735164359102,-500.0,0.00012933,2]
[346671797,1735164359142,-500.0,0.00012933,2]
[346671798,1735164359181,-2880.06,0.00012933,2]
[346671799,1735164359219,-500.0,0.00012933,2]
[346671800,1735164359258,-500.0,0.00012933,2]
[346671801,1735164359296,-500.0,0.00012933,2]
[346671802,1735164359335,-3341.89,0.00012933,2]
[346671803,1735164359372,-500.0,0.00012933,2]
[346671804,1735164359411,-500.0,0.00012933,2]
[346671805,1735164359449,-15826.98,0.00012933,2]
[346671806,1735164359489,-1621.78,0.00012933,2]
[346671807,1735164359526,-1439.39,0.00012933,2]
[346671808,1735164359566,-1377.78,0.00012933,2]
[346671809,1735164359603,-279.96,0.00012933,2]
[346671810,1735164359642,-1521.59,0.00012933,2]
[346671811,1735164359679,-592.95,0.00012933,2]
[346671812,1735164359715,-873.22,0.00012933,2]
[346671813,1735164359752,-500.0,0.00012933,2]
[346671814,1735164359791,-1403.1,0.00012933,2]
[346671815,1735164359831,-1143.0,0.00012933,2]
[346671816,1735164359872,-872.75,0.00012933,2]
[346671817,1735164359911,-3400.12,0.00012933,2]
[346671818,1735164359951,-500.0,0.00012933,2]
[346671819,1735164359990,-500.0,0.00012933,2]
[346671820,1735164360034,-1967.11,0.00012933,2]
[346671821,1735164360077,-9388.77,0.00012933,2]
[346671822,1735164360126,-6075.06,0.00012933,2]
[346671823,1735164360168,-3529.64,0.00012933,2]
[346671824,1735164360212,-500.0,0.00012933,2]
[346671825,1735164360258,-500.0,0.00012933,2]
[346671826,1735164360303,-3910.89,0.00012933,2]
[346671827,1735164360347,-1008.73,0.00012933,2]
[346671828,1735164360388,-500.0,0.00012933,2]
[346671829,1735164360433,-582.17,0.00012933,2]
[346671830,1735164360476,-419.28,0.00012933,2]
[346671831,1735164360519,-4341.42,0.00012933,2]
[346671832,1735164360561,-2831.93,0.00012933,2]
[346671833,1735164360604,-916.08,0.00012933,2]
[346671834,1735164360645,-1792.92,0.00012933,2]
[346671835,1735164360684,-1974.93,0.00012933,2]
[346671836,1735164360722,-500.0,0.00012933,2]
[346671837,1735164360759,-500.0,0.00012933,2]
[346671838,1735164360800,-727.18,0.00012933,2]
[346671839,1735164360842,-1377.33,0.00012933,2]
[346671840,1735164360883,-649.2,0.00012933,2]
[346671841,1735164360922,-500.0,0.00012933,2]
[346671842,1735164360961,-500.0,0.00012933,2]
[346671843,1735164361002,-4112.45,0.00012933,2]
[346671844,1735164361042,-1234.38,0.00012933,2]
[346671845,1735164361082,-500.0,0.00012933,2]
[346671846,1735164361122,-500.0,0.00012933,2]
[346671847,1735164361160,-931.22,0.00012933,2]
[346671848,1735164361200,-1090.15,0.00012933,2]
[346671849,1735164361239,-2984.64,0.00012933,2]
[346671850,1735164361277,-500.0,0.00012933,2]
[346671851,1735164361316,-1922.51,0.00012933,2]
[346671852,1735164361356,-500.0,0.00012933,2]
[346671853,1735164361396,-500.0,0.00012933,2]
[346671854,1735164361437,-740.97,0.00012933,2]
[346671855,1735164361480,-2270.95,0.00012933,2]
[346671856,1735164361520,-500.0,0.00012933,2]
[346671857,1735164361561,-1423.0,0.00012933,2]
[346671858,1735164361602,-2480.86,0.00012933,2]
[346671859,1735164361641,-1815.53,0.00012933,2]
[346671860,1735164361682,-608.34,0.00012933,2]
[346671861,1735164361721,-500.0,0.00012933,2]
[346671862,1735164361762,-3247.46,0.00012933,2]
[346671863,1735164361806,-500.0,0.00012933,2]
[346671864,1735164361848,-500.0,0.00012933,2]
[346671865,1735164361888,-961.04,0.00012933,2]
[346671866,1735164361927,-500.0,0.00012933,2]
[346671867,1735164361967,-592.56,0.00012933,2]
[346671868,1735164362165,-500.0,0.00012933,2]
[346671869,1735164362209,-500.0,0.00012933,2]
[346671870,1735164362249,-500.0,0.00012933,2]
[346671871,1735164362288,-500.0,0.00012933,2]
[346671872,1735164362329,-9307.39,0.00012933,2]
[346671873,1735164362375,-1640.41,0.00012933,2]
[346671874,1735164362415,-654.03,0.00012933,2]
[346671875,1735164362456,-179.76,0.00012933,2]
[346671876,1735164362497,-2355.75,0.00012933,2]
[346671877,1735164362538,-500.0,0.00012933,2]
[346671878,1735164362580,-500.0,0.00012933,2]
[346671879,1735164362629,-500.0,0.00012933,2]
[346671880,1735164362676,-500.0,0.00012933,2]
[346671881,1735164362724,-500.0,0.00012933,2]
[346671882,1735164362772,-763.36,0.00012933,2]
[346671883,1735164362824,-500.0,0.00012933,2]
[346671884,1735164362878,-500.0,0.00012933,2]
[346671885,1735164362925,-500.0,0.00012933,2]
[346671886,1735164362972,-1208.26,0.00012933,2]
[346671887,1735164363017,-500.0,0.00012933,2]
[346671888,1735164363061,-500.0,0.00012933,2]
[346671889,1735164363106,-500.0,0.00012933,2]
[346671890,1735164363152,-3563.25,0.00012933,2]
[346671891,1735164363198,-1543.29,0.00012933,2]
[346671892,1735164363246,-500.0,0.00012933,2]
[346671893,1735164363293,-500.0,0.00012933,2]
[346671894,1735164363340,-500.0,0.00012933,2]
[346671895,1735164363388,-500.0,0.00012933,2]
[346671896,1735164363437,-500.0,0.00012933,2]
[346671897,1735164363487,-1601.32,0.00012933,2]
[346671898,1735164363537,-1213.26,0.00012933,2]
[346671899,1735164363581,-1603.06,0.00012933,2]
[346671900,1735164363627,-500.0,0.00012933,2]
[346671901,1735164363667,-500.0,0.00012933,2]
[346671902,1735164363709,-500.0,0.00012933,2]
[346671903,1735164363749,-1105.08,0.00012933,2]
[346671904,1735164363792,-500.0,0.00012933,2]
[346671905,1735164363833,-1692.96,0.00012933,2]
[346671906,1735164363877,-500.0,0.00012933,2]
[346671907,1735164363917,-500.0,0.00012933,2]
[346671908,1735164363961,-1312.03,0.00012933,2]
[346671909,1735164364006,-611.32,0.00012933,2]
[346671910,1735164364053,-623.68,0.00012933,2]
[346671911,1735164364099,-500.0,0.00012933,2]
[346671912,1735164364140,-500.0,0.00012933,2]
[346671913,1735164364183,-500.0,0.00012933,2]
[346671914,1735164364228,-3100.84,0.00012933,2]
[346671915,1735164364269,-1883.52,0.00012933,2]
[346671916,1735164364310,-500.0,0.00012933,2]
[346671917,1735164364352,-579.17,0.00012933,2]
[346671918,1735164364395,-564.6451755,0.00012933,2]
[346671919,1735164364438,-500.0,0.00012933,2]
[346671920,1735164364481,-354.88,0.00012933,2]
[346671921,1735164364523,-500.0,0.00012933,2]
[346671922,1735164364565,-717.75,0.00012933,2]
[346671923,1735164364608,-500.0,0.00012933,2]
[346671924,1735164364649,-847.26,0.00012933,2]
[346671925,1735164364693,-1570.67,0.00012933,2]
[346671926,1735164364738,-500.0,0.00012933,2]
[346671927,1735164364783,-1014.18,0.00012933,2]
[346671928,1735164364829,-11520.3,0.00012933,2]
[346671929,1735164364874,-1216.3,0.00012933,2]
[346671930,1735164364913,-500.0,0.00012933,2]
[346671931,1735164364955,-500.0,0.00012933,2]
[346671932,1735164364995,-558.3,0.00012933,2]
[346671933,1735164365037,-3191.33,0.00012933,2]
[346671934,1735164365078,-500.0,0.00012933,2]
[346671935,1735164365118,-673.15,0.00012933,2]
[346671936,1735164365159,-557.2,0.00012933,2]
[346671937,1735164365199,-500.0,0.00012933,2]
[346671938,1735164365238,-915.79,0.00012933,2]
[346671939,1735164365277,-1827.67,0.00012933,2]
[346671940,1735164365319,-1456.3,0.00012933,2]
[346671941,1735164365362,-1916.58,0.00012933,2]
[346671942,1735164365403,-500.0,0.00012933,2]
[346671943,1735164365443,-1026.93,0.00012933,2]
[346671944,1735164365482,-500.0,0.00012933,2]
[346671945,1735164365522,-1765.67,0.00012933,2]
[346671946,1735164365562,-1164.82,0.00012933,2]
[346671947,1735164365599,-1448.16,0.00012933,2]
[346671948,1735164365638,-508.06,0.00012933,2]
[346671949,1735164365676,-915.24,0.00012933,2]
[346671950,1735164365714,-500.0,0.00012933,2]
[346671951,1735164365751,-917.06,0.00012933,2]
[346671952,1735164365790,-871.84,0.00012933,2]
[346671953,1735164365830,-3465.87,0.00012933,2]
[346671954,1735164365870,-731.12,0.00012933,2]
[346671955,1735164365909,-2261.85,0.00012933,2]
[346671956,1735164365947,-500.0,0.00012933,2]
[346671957,1735164365985,-1589.3,0.00012933,2]
[346671958,1735164366023,-500.0,0.00012933,2]
[346671959,1735164366062,-3907.78,0.00012933,2]
[346671960,1735164366102,-500.0,0.00012933,2]
[346671961,1735164366143,-3075.07,0.00012933,2]
[346671962,1735164366183,-1335.52,0.00012933,2]
[346671963,1735164366222,-500.0,0.00012933,2]
[346671964,1735164366262,-5532.92,0.00012933,2]
[346671965,1735164366305,-16927.22,0.00012933,2]
[346671966,1735164366347,-500.0,0.00012933,2]
[346671967,1735164366391,-500.0,0.00012933,2]
[346671968,1735164366432,-500.0,0.00012933,2]
[346671969,1735164366472,-500.0,0.00012933,2]
[346671970,1735164366512,-1498.21,0.00012933,2]
[346671971,1735164366554,-2605.03,0.00012933,2]
[346671972,1735164366749,-500.0,0.00012933,2]
[346671973,1735164366794,-1727.49,0.00012933,2]
[346671974,1735164366834,-500.0,0.00012933,2]
[346671975,1735164366876,-500.0,0.00012933,2]
[346671976,1735164366916,-401.34,0.00012933,2]
[346671977,1735164366957,-526.04,0.00012933,2]
[346671978,1735164366997,-959.12,0.00012933,2]
[346671979,1735164367036,-1885.42,0.00012933,2]
[346671980,1735164367077,-3946.16,0.00012933,2]
[346671981,1735164367117,-500.0,0.00012933,2]
[346671982,1735164367157,-2017.46,0.00012933,2]
[346671983,1735164367197,-500.0,0.00012933,2]
[346671984,1735164367238,-500.0,0.00012933,2]
[346671985,1735164367277,-803.24,0.00012933,2]
[346671986,1735164367317,-1607.88,0.00012933,2]
[346671987,1735164367358,-1340.55,0.00012933,2]
[346671988,1735164367398,-752.51,0.00012933,2]
[346671989,1735164367437,-500.0,0.00012933,2]
[346671990,1735164367475,-3873.75,0.00012933,2]
[346671991,1735164367512,-500.0,0.00012933,2]
[346671992,1735164367551,-500.0,0.00012933,2]
[346671993,1735164367589,-500.0,0.00012933,2]
[346671994,1735164367627,-719.51,0.00012933,2]
[346671995,1735164367665,-575.03,0.00012933,2]
[346671996,1735164367706,-500.0,0.00012933,2]
[346671997,1735164367754,-500.0,0.00012933,2]
[346671998,1735164367801,-500.0,0.00012933,2]
[346671999,1735164367843,-500.0,0.00012933,2]
[346672000,1735164367886,-859.57,0.00012933,2]
[346672001,1735164367926,-500.0,0.00012933,2]
[346672002,1735164367967,-500.0,0.00012933,2]
[346672003,1735164368010,-610.05,0.00012933,2]
[346672004,1735164368052,-339.92,0.00012933,2]
[346672005,1735164368094,-500.0,0.00012933,2]
[346672006,1735164368134,-500.0,0.00012933,2]
[346672007,1735164368175,-566.37,0.00012933,2]
[346672008,1735164368215,-500.0,0.00012933,2]
[346672009,1735164368256,-500.0,0.00012933,2]
[346672010,1735164368295,-500.0,0.00012933,2]
[346672011,1735164368335,-1708.0,0.00012933,2]
[346672012,1735164368376,-500.0,0.00012933,2]
[346672013,1735164368417,-1042.1,0.00012933,2]
[346672014,1735164368460,-500.0,0.00012933,2]
[346672015,1735164368502,-500.0,0.00012933,2]
[346672016,1735164368543,-4558.88,0.00012933,2]
[346672017,1735164368585,-500.0,0.00012933,2]
[346672018,1735164368627,-1585.78,0.00012933,2]
[346672019,1735164368667,-500.0,0.00012934,2]
[346672020,1735164368707,-500.0,0.00012934,2]
[346672021,1735164368750,-845.95,0.00012934,2]
[346672022,1735164368796,-528.64,0.00012934,2]
[346672023,1735164368836,-500.0,0.00012934,2]
[346672024,1735164368877,-510.77,0.00012934,2]
[346672025,1735164368919,-500.0,0.00012934,2]
[346672026,1735164368959,-806.64,0.00012934,2]
[346672027,1735164369000,-500.0,0.00012934,2]
[346672028,1735164369042,-500.0,0.00012934,2]
[346672029,1735164369083,-505.28781327,0.00012934,2]
[346672030,1735164369123,-531.8,0.00012934,2]
[346672031,1735164369163,-500.0,0.00012934,2]
[346672032,1735164369204,-500.0,0.00012934,2]
[346672033,1735164369245,-500.0,0.00012934,2]
[346672034,1735164369286,-567.43,0.00012934,2]
[346672035,1735164369329,-505.2,0.00012934,2]
[346672036,1735164369373,-500.0,0.00012934,2]
[346672037,1735164369414,-500.0,0.00012934,2]
[346672038,1735164369456,-500.0,0.00012934,2]
[346672039,1735164369497,-500.0,0.00012935,2]
[346672040,1735164369539,-500.0,0.00012935,2]
[346672041,1735164369579,-579.06,0.00012935,2]
[346672042,1735164369621,-500.0,0.00012935,2]
[346672043,1735164369662,-910.59,0.00012935,2]
[346672044,1735164369702,-500.0,0.00012935,2]
[346672045,1735164369747,-500.0,0.00012935,2]
[346672046,1735164369791,-803.65,0.00012935,2]
[346672047,1735164369833,-500.0,0.00012935,2]
[346672048,1735164369880,-500.0,0.00012935,2]
[346672049,1735164369922,-500.0,0.00012935,2]
[346672050,1735164369964,-794.42,0.00012935,2]
[346672051,1735164370008,-796.9,0.00012935,2]
[346672052,1735164370051,-500.0,0.00012935,2]
[346672053,1735164370097,-500.0,0.00012935,2]
[346672054,1735164370139,-500.0,0.00012935,2]
[346672055,1735164370180,-500.0,0.00012935,2]
[346672056,1735164370220,-500.0,0.00012935,2]
[346672057,1735164370261,-500.0,0.00012935,2]
[346672058,1735164370303,-500.0,0.00012935,2]
[346672059,1735164370344,-500.0,0.00012935,2]
[346672060,1735164370384,-680.6,0.00012935,2]
[346672061,1735164370425,-500.0,0.00012935,2]
[346672062,1735164370466,-790.34,0.00012935,2]
[346672063,1735164370508,-817.59,0.00012935,2]
[346672064,1735164370548,-500.0,0.00012935,2]
[346672065,1735164370588,-500.0,0.00012935,2]
[346672066,1735164370633,-500.0,0.00012935,2]
[346672067,1735164370674,-500.0,0.00012935,2]
[346672068,1735164370714,-500.0,0.00012935,2]
[346672069,1735164370754,-500.0,0.00012935,2]
[346672070,1735164370802,-718.52,0.00012935,2]
[346672071,1735164370843,-500.0,0.00012935,2]
[346672072,1735164371078,-500.0,0.00012935,2]
[346672073,1735164371127,-500.0,0.00012935,2]
[346672074,1735164371172,-940.98,0.00012935,2]
[346672075,1735164371212,-500.0,0.00012935,2]
[346672076,1735164371254,-638.17,0.00012935,2]
[346672077,1735164371294,-646.8,0.00012935,2]
[346672078,1735164371333,-1098.82,0.00012935,2]
[346672079,1735164371375,-500.0,0.00012935,2]
[346672080,1735164371413,-1042.71,0.00012935,2]
[346672081,1735164371454,-500.0,0.00012935,2]
[346672082,1735164371493,-500.0,0.00012935,2]
[346672083,1735164371532,-500.0,0.00012935,2]
[346672084,1735164371569,-625.84,0.00012935,2]
[346672085,1735164371605,-500.0,0.00012935,2]
[346672086,1735164371644,-619.74,0.00012935,2]
[346672087,1735164371681,-500.0,0.00012935,2]
[346672088,1735164371720,-1076.99,0.00012935,2]
[346672089,1735164371757,-500.0,0.00012935,2]
[346672090,1735164371795,-923.48,0.00012935,2]
[346672091,1735164371837,-500.0,0.00012935,2]
[346672092,1735164371877,-500.0,0.00012935,2]
[346672093,1735164371915,-912.48,0.00012935,2]
[346672094,1735164371952,-500.0,0.00012935,2]
[346672095,1735164371990,-500.0,0.00012935,2]
[346672096,1735164372027,-500.0,0.00012935,2]
[346672097,1735164372067,-813.79,0.00012935,2]
[346672098,1735164372106,-1448.11442211,0.00012938,2]
[346672099,1735164372143,-1448.11442211,0.00012938,2]
[346672100,1735164372182,-1448.11442211,0.00012944,2]
[346672101,1735164372218,-1448.11442211,0.00012945,2]
[346672102,1735164372254,-501.71763007,0.0001298,2]